bitfinex/quotes_BTCUSD_20250114
["timestamp","ask_amount","ask_price","bid_price","bid_amount"]
[1736873676573,0.17151719,95730.0,95729.0,0.05215519]
[1736873677112,0.16899719,95730.0,95729.0,0.05215519]
[1736873677300,0.06912291,95730.0,95729.0,0.05215519]
[1736873677509,0.07312291,95730.0,95729.0,0.05215519]
[1736873677716,0.06512291,95730.0,95729.0,0.05215519]
[1736873677923,0.06912291,95730.0,95729.0,0.05215519]
[1736873678218,0.06612291,95730.0,95729.0,0.05215519]
[1736873678455,0.00130576,95740.0,95734.0,0.20891]
[1736873678656,0.06512291,95738.0,95730.0,0.45148373]
[1736873678836,0.06512291,95738.0,95734.0,0.05215478]
[1736873679068,0.06512291,95738.0,95730.0,0.31314692]
[1736873679069,0.16499719,95731.0,95730.0,0.03126278]
[1736873679241,0.55005015,95731.0,95730.0,0.03126278]
[1736873679439,0.44874411,95731.0,95730.0,0.03126278]
[1736873680166,0.44222411,95731.0,95730.0,0.03126278]
[1736873680370,0.19451719,95731.0,95730.0,0.03126278]
[1736873680551,0.19582314,95731.0,95730.0,0.03126278]
[1736873680730,0.10494886,95731.0,95730.0,0.03126278]
[1736873681083,0.09894886,95731.0,95730.0,0.03126278]
[1736873681286,0.19882314,95731.0,95730.0,0.03126278]
[1736873681661,0.19582314,95731.0,95730.0,0.03126278]
[1736873681893,0.20382314,95731.0,95730.0,0.03126278]
[1736873682867,0.20382307,95731.0,95730.0,0.03126278]
[1736873683100,0.20451719,95731.0,95730.0,0.03126278]
[1736873683819,0.19651719,95731.0,95730.0,0.03126278]
[1736873684153,0.36953532,95731.0,95730.0,0.03126278]
[1736873684347,0.20151719,95731.0,95730.0,0.03126278]
[1736873684555,0.20282314,95731.0,95730.0,0.03126278]
[1736873685158,0.30705006,95731.0,95730.0,0.03126278]
[1736873685359,0.30574411,95731.0,95730.0,0.03126278]
[1736873685647,0.55574411,95731.0,95730.0,0.03126278]
[1736873685793,0.65997103,95731.0,95730.0,0.03126278]
[1736873687812,0.45574411,95731.0,95730.0,0.03126278]
[1736873688018,0.44922411,95731.0,95730.0,0.03126278]
[1736873688244,0.45574411,95731.0,95730.0,0.01826276]
[1736873688784,0.44922411,95731.0,95730.0,0.01826276]
[1736873688989,0.45574411,95731.0,95730.0,0.01826276]
[1736873689711,0.45374411,95731.0,95730.0,0.01826276]
[1736873690046,0.45874411,95731.0,95730.0,0.01826276]
[1736873690462,0.21512291,95731.0,95730.0,0.01826276]
[1736873690664,0.22164291,95731.0,95730.0,0.01826276]
[1736873690884,0.20551719,95731.0,95730.0,0.01826276]
[1736873691138,0.30305004,95731.0,95730.0,0.01826276]
[1736873691378,0.30174411,95731.0,95730.0,0.01826276]
[1736873691618,0.30874411,95731.0,95730.0,0.01826276]
[1736873695942,0.20451719,95731.0,95730.0,0.01826276]
[1736873696147,0.20582317,95731.0,95730.0,0.01826276]
[1736873697734,0.19930317,95731.0,95730.0,0.01826276]
[1736873697878,0.20582317,95731.0,95730.0,0.01826276]
[1736873698302,0.26923911,95731.0,95730.0,0.01826276]
[1736873698526,0.26793313,95731.0,95730.0,0.01826276]
[1736873698734,0.20451719,95731.0,95730.0,0.01826276]
[1736873699024,0.20582317,95731.0,95730.0,0.01826276]
[1736873700497,0.19930317,95731.0,95730.0,0.01826276]
[1736873700717,0.20582317,95731.0,95730.0,0.01826276]
[1736873700951,0.19930317,95731.0,95730.0,0.01826276]
[1736873701106,0.20582317,95731.0,95730.0,0.01911726]
[1736873701300,0.20761763,95731.0,95730.0,0.01911726]
[1736873701834,0.19979165,95731.0,95730.0,0.01911726]
[1736873702057,0.01179446,95731.0,95730.0,0.01911726]
[1736873702340,0.07691737,95731.0,95730.0,0.01911726]
[1736873702857,0.07391737,95731.0,95730.0,0.03868647]
[1736873703078,0.00879446,95731.0,95730.0,0.03868647]
[1736873703816,0.00879446,95731.0,95730.0,0.01911726]
[1736873704035,0.00279446,95731.0,95730.0,0.01911726]
[1736873704639,0.00179446,95731.0,95730.0,0.01911726]
[1736873705023,0.00179446,95731.0,95730.0,0.02011726]
[1736873705359,0.06691737,95731.0,95730.0,0.02011726]
[1736873706313,0.06691737,95731.0,95730.0,0.02111726]
[1736873707560,0.19437409,95731.0,95730.0,0.02111726]
[1736873707813,0.16809749,95731.0,95730.0,0.02111726]
[1736873708391,0.16679165,95731.0,95730.0,0.02011726]
[1736873708594,0.16879165,95731.0,95730.0,0.02011726]
[1736873708792,0.16879165,95731.0,95730.0,0.01911726]
[1736873709020,0.16679165,95731.0,95730.0,0.01911726]
[1736873709417,0.16879165,95731.0,95730.0,0.01911726]
[1736873710597,0.16873864,95731.0,95730.0,0.01911726]
[1736873710767,0.16673864,95731.0,95730.0,0.01911726]
[1736873711396,0.06686436,95731.0,95730.0,0.01911726]
[1736873711600,0.00174145,95731.0,95730.0,0.24804418]
[1736873711799,0.00174145,95731.0,95730.0,0.39804418]
[1736873712010,0.00174145,95731.0,95730.0,0.4190219]
[1736873712226,0.00174145,95731.0,95730.0,0.41914762]
[1736873712606,0.00174145,95731.0,95730.0,0.42014762]
[1736873713009,0.00174145,95731.0,95730.0,0.43083004]
[1736873713609,0.00174145,95731.0,95730.0,0.43183004]
[1736873713775,0.00174145,95731.0,95730.0,0.43083004]
[1736873714163,0.00174145,95731.0,95730.0,0.61913904]
[1736873714314,0.00274145,95731.0,95730.0,0.62513904]
[1736873714518,0.00374145,95731.0,95730.0,0.58560504]
[1736873714680,0.00374145,95731.0,95730.0,0.56816504]
[1736873715236,0.00374145,95731.0,95730.0,0.43683004]
[1736873715681,0.00374145,95731.0,95730.0,0.53918104]
[1736873715939,0.00374145,95731.0,95730.0,0.57405813]
[1736873716460,0.06512291,95770.0,95741.0,0.15]
[1736873716654,0.1,95804.0,95740.0,0.835596]
[1736873716655,0.00014949,95764.0,95760.0,0.13833681]
[1736873716861,0.00014949,95764.0,95761.0,0.31307892]
[1736873717072,0.00014949,95764.0,95763.0,0.208848]
[1736873717275,0.00014949,95764.0,95763.0,0.31307492]
[1736873717780,0.00014949,95764.0,95763.0,0.46307492]
[1736873718684,0.00114949,95764.0,95763.0,0.61023992]
[1736873718872,0.00014949,95764.0,95763.0,0.55241613]
[1736873719089,0.00114949,95764.0,95763.0,0.55341613]
[1736873719288,0.00114949,95764.0,95763.0,0.65881113]
[1736873719432,0.00114949,95764.0,95763.0,2.05354185]
[1736873719627,0.00114949,95764.0,95763.0,2.21048385]
[1736873719874,0.000854,95781.0,95780.0,0.208811]
[1736873720081,0.000854,95781.0,95780.0,0.56741792]
[1736873720347,0.000854,95781.0,95780.0,0.64899501]
[1736873721117,0.000854,95781.0,95780.0,0.64999501]
[1736873721610,0.000854,95781.0,95780.0,0.64899501]
[1736873721826,0.000854,95781.0,95780.0,0.65399501]
[1736873722078,0.001854,95781.0,95780.0,0.66299501]
[1736873722232,0.001854,95781.0,95780.0,0.67078416]
[1736873722956,0.001854,95781.0,95780.0,1.18107242]
[1736873723296,0.001854,95781.0,95780.0,1.20145909]
[1736873723626,0.001,95781.0,95780.0,1.20145909]
[1736873723825,0.208698,95833.0,95819.0,0.208724]
[1736873723826,0.06512291,95825.0,95819.0,0.208724]
[1736873724030,0.06512291,95825.0,95819.0,0.233205]
[1736873724031,0.06562188,95825.0,95819.0,0.233205]
[1736873725035,0.09987428,95821.0,95819.0,0.234205]
[1736873725314,0.27384691,95820.0,95819.0,0.02548]
[1736873725488,0.00949897,95825.0,95819.0,0.02548]
[1736873725693,0.00949897,95825.0,95820.0,0.52167292]
[1736873725899,0.00949897,95825.0,95820.0,0.54615292]
[1736873726651,0.00049897,95825.0,95820.0,0.5566208]
[1736873726852,0.00049897,95825.0,95820.0,0.02448]
[1736873727278,0.002,95821.0,95820.0,0.02448]
[1736873727485,0.007,95821.0,95820.0,0.02448]
[1736873727644,0.005,95821.0,95820.0,0.03489524]
[1736873728045,0.005,95821.0,95820.0,0.03589524]
[1736873728530,0.00349897,95825.0,95820.0,0.03489524]
[1736873728680,0.00049897,95825.0,95821.0,0.31294892]
[1736873728880,0.00049897,95825.0,95824.0,0.15]
[1736873729080,0.00049897,95825.0,95824.0,0.25422692]
[1736873729282,0.00179173,95827.0,95826.0,0.26490281]
[1736873729283,4.489e-05,95827.0,95826.0,0.26490281]
[1736873729484,0.0008535,95839.0,95826.0,0.26490281]
[1736873729485,0.0008535,95839.0,95838.0,0.03487709]
[1736873729684,0.0008535,95839.0,95838.0,0.67203473]
[1736873730063,0.00100312,95839.0,95838.0,0.69651473]
[1736873730269,0.00100312,95839.0,95838.0,0.36040973]
[1736873730677,0.00100312,95839.0,95838.0,0.38173105]
[1736873730878,0.00103547,95869.0,95859.0,0.208639]
[1736873731118,0.00103547,95869.0,95859.0,0.33734592]
[1736873731319,0.06512291,95864.0,95859.0,0.02448]
[1736873731467,0.06615838,95869.0,95859.0,0.02448]
[1736873731672,0.06512291,95864.0,95859.0,0.02448]
[1736873733864,0.06512291,95864.0,95859.0,0.03048]
[1736873734277,0.06512291,95864.0,95859.0,0.02948]
[1736873734492,0.00103547,95869.0,95859.0,0.03148]
[1736873734493,0.06597611,95860.0,95859.0,0.03148]
[1736873734712,0.16585039,95860.0,95859.0,0.03148]
[1736873735361,0.16585039,95860.0,95859.0,0.02948]
[1736873735953,0.19015445,95860.0,95859.0,0.02948]
[1736873736527,0.19215445,95860.0,95859.0,0.02948]
[1736873736726,0.19215445,95860.0,95859.0,0.02448]
[1736873737275,0.19015445,95860.0,95859.0,0.02448]
[1736873737420,0.19215445,95860.0,95859.0,0.02448]
[1736873737824,0.16915445,95860.0,95859.0,0.02448]
[1736873738024,0.17185039,95860.0,95859.0,0.02448]
[1736873738910,0.16785039,95860.0,95859.0,0.02448]
[1736873739707,0.16585039,95860.0,95859.0,0.02448]
[1736873739911,0.16685039,95860.0,95859.0,0.02448]
[1736873740418,0.0008532,95860.0,95859.0,0.02448]
[1736873740620,0.0008532,95860.0,95859.0,0.27870692]
[1736873741590,0.0038532,95860.0,95859.0,0.27870692]
[1736873741798,0.0018532,95860.0,95859.0,0.27870692]
[1736873742252,0.0028532,95860.0,95859.0,0.28770692]
[1736873743099,0.0018532,95860.0,95859.0,0.28770692]
[1736873743428,0.0018532,95860.0,95859.0,0.29070692]
[1736873743636,0.00161304,95860.0,95859.0,0.29070692]
[1736873744215,0.00161304,95860.0,95859.0,0.14070692]
[1736873745943,0.00161304,95860.0,95859.0,0.03648]
[1736873747770,0.16661023,95860.0,95859.0,0.03648]
[1736873747966,0.16661023,95860.0,95859.0,0.04420753]
[1736873749071,0.16661023,95860.0,95859.0,0.04120753]
[1736873749462,0.16661023,95860.0,95859.0,0.03348]
[1736873750100,0.06573595,95860.0,95859.0,0.02448]
[1736873750311,0.00061304,95860.0,95859.0,0.02448]
[1736873750516,0.00061304,95860.0,95859.0,0.13070692]
[1736873750716,0.00061304,95860.0,95859.0,0.13897751]
[1736873751323,0.00061304,95860.0,95859.0,0.14670504]
[1736873751699,0.00061304,95860.0,95859.0,0.14770504]
[1736873752102,0.00061304,95860.0,95859.0,0.14670504]
[1736873752706,0.00061304,95860.0,95859.0,0.14970504]
[1736873753324,0.00161304,95860.0,95859.0,0.15770504]
[1736873754978,0.16661023,95860.0,95859.0,0.04320753]
[1736873756007,0.16661023,95860.0,95859.0,0.04020753]
[1736873756355,0.19091429,95860.0,95859.0,0.04020753]
[1736873756529,0.18991429,95860.0,95859.0,0.03220753]
[1736873756869,0.18991429,95860.0,95859.0,0.02448]
[1736873757078,0.3841423,95860.0,95859.0,0.02448]
[1736873757251,0.39283715,95860.0,95859.0,0.02448]
[1736873757494,0.29483715,95860.0,95859.0,0.02448]
[1736873757830,0.19461023,95860.0,95859.0,0.02448]
[1736873758035,0.19061023,95860.0,95859.0,0.02448]
[1736873758234,0.10248732,95860.0,95859.0,0.02448]
[1736873758429,0.10248732,95860.0,95859.0,0.02548]
[1736873758430,0.11048732,95860.0,95859.0,0.02548]
[1736873758631,0.11048732,95860.0,95859.0,0.12970692]
[1736873758632,0.00861304,95860.0,95859.0,0.12970692]
[1736873758885,0.00861304,95860.0,95859.0,1.62970692]
[1736873759033,0.01161304,95860.0,95859.0,0.34615291]
[1736873759235,0.01161304,95860.0,95859.0,0.49615291]
[1736873759513,0.00861304,95860.0,95859.0,0.49615291]
[1736873759685,0.00861304,95860.0,95859.0,0.53042801]
[1736873759901,0.00061304,95860.0,95859.0,0.53042801]
[1736873760100,0.00461304,95860.0,95859.0,0.53042801]
[1736873760302,0.00061304,95860.0,95859.0,0.71564249]
[1736873760479,0.00061304,95860.0,95859.0,1.20513049]
[1736873760802,0.00161304,95860.0,95859.0,1.21925621]
[1736873761000,0.00161304,95860.0,95859.0,0.72976821]
[1736873761200,0.00161304,95860.0,95859.0,1.30423221]
[1736873761432,0.00061304,95860.0,95859.0,1.29523221]
[1736873761769,0.00161304,95860.0,95859.0,1.53326461]
[1736873762189,0.001,95860.0,95859.0,1.54026461]
[1736873762588,0.001,95860.0,95859.0,1.30623221]
[1736873763397,0.00179257,95867.0,95866.0,0.39362681]
[1736873763572,0.00075258,95869.0,95868.0,0.03500281]
[1736873763772,4.8e-07,95869.0,95868.0,1.36591442]
[1736873763977,4.8e-07,95869.0,95868.0,0.34619542]
[1736873764756,5.8e-07,95877.0,95876.0,0.39360481]
[1736873764878,5.8e-07,95877.0,95876.0,0.55479742]
[1736873765301,5.8e-07,95877.0,95876.0,2.05479742]
[1736873765745,5.8e-07,95877.0,95876.0,2.10119742]
[1736873765938,5.8e-07,95877.0,95876.0,2.12419742]
[1736873766159,0.0146217,95917.0,95908.0,0.358533]
[1736873766362,0.00054948,95909.0,95908.0,0.48723992]
[1736873768398,0.00054948,95909.0,95908.0,0.50004691]
[1736873769481,0.00054948,95909.0,95908.0,0.51046187]
[1736873769711,0.00045735,95909.0,95908.0,0.51046187]
[1736873770897,0.00045735,95909.0,95908.0,0.50265488]
[1736873773051,0.00130945,95909.0,95908.0,0.50265488]
[1736873773822,0.00130945,95909.0,95908.0,0.02948]
[1736873777915,0.00130945,95909.0,95908.0,0.02548]
[1736873778119,0.10534825,95909.0,95908.0,0.02448]
[1736873778419,0.06643236,95909.0,95908.0,0.02448]
[1736873778778,0.19061,95909.0,95908.0,0.02648]
[1736873778953,0.29483707,95909.0,95908.0,0.02648]
[1736873779113,0.39876048,95909.0,95908.0,0.02648]
[1736873779307,0.29453356,95909.0,95908.0,0.02648]
[1736873779718,0.29453356,95909.0,95908.0,0.002]
[1736873780123,0.06512291,95888.0,95880.0,0.01027705]
[1736873780322,0.22941065,95909.0,95852.0,0.0806]
[1736873780323,0.06512291,95875.0,95852.0,0.0806]
[1736873780524,0.06512291,95875.0,95867.0,0.208621]
[1736873780747,0.06512291,95875.0,95863.0,0.208628]
[1736873780967,0.06512291,95875.0,95864.0,0.25422692]
[1736873781328,0.06512291,95870.0,95866.0,0.15]
[1736873781697,0.06512291,95875.0,95866.0,0.27870692]
[1736873781914,0.06512291,95875.0,95869.0,0.208617]
[1736873782086,0.06512291,95875.0,95869.0,0.233097]
[1736873782492,0.06512291,95875.0,95869.0,0.02448]
[1736873782687,0.06512291,95875.0,95869.0,0.233095]
[1736873783047,0.06512291,95875.0,95869.0,0.02448]
[1736873783247,0.09987428,95880.0,95869.0,0.02448]
[1736873783248,0.06512291,95871.0,95869.0,0.02448]
[1736873783686,0.16499719,95870.0,95869.0,0.02448]
[1736873783884,0.37361219,95870.0,95869.0,0.02448]
[1736873784107,0.39661219,95870.0,95869.0,0.02448]
[1736873784426,0.47381219,95870.0,95869.0,0.02648]
[1736873784625,0.47381219,95870.0,95869.0,0.02448]
[1736873785292,0.24319719,95870.0,95869.0,0.02448]
[1736873785692,0.26619719,95870.0,95869.0,0.02448]
[1736873786117,0.27267719,95870.0,95869.0,0.02448]
[1736873786498,0.27667719,95870.0,95869.0,0.02448]
[1736873786698,0.27167719,95870.0,95869.0,0.02448]
[1736873787125,0.27867719,95870.0,95869.0,0.02548]
[1736873787303,0.27167719,95870.0,95869.0,0.02448]
[1736873787500,0.27267719,95870.0,95869.0,0.02448]
[1736873787707,0.27667719,95870.0,95869.0,0.02448]
[1736873787908,0.27567719,95870.0,95869.0,0.02448]
[1736873788310,0.27667719,95870.0,95869.0,0.02448]
[1736873788710,0.27567719,95870.0,95869.0,0.02448]
[1736873789110,0.57111267,95870.0,95869.0,0.02448]
[1736873789534,0.37342411,95870.0,95869.0,0.02448]
[1736873789737,0.37590411,95870.0,95869.0,0.02448]
[1736873790117,0.38290411,95870.0,95869.0,0.02448]
[1736873790316,0.37690411,95870.0,95869.0,0.02448]
[1736873790638,0.38290411,95870.0,95869.0,0.02548]
[1736873790852,0.48290411,95870.0,95869.0,0.02548]
[1736873791021,0.58113103,95870.0,95869.0,0.02448]
[1736873791270,0.39663419,95860.0,95859.0,0.00178941]
[1736873791419,0.50086111,95860.0,95859.0,0.00193889]
[1736873793127,0.33151128,95860.0,95859.0,0.02641889]
[1736873793332,0.16499719,95860.0,95859.0,0.02641889]
[1736873793576,0.17199719,95860.0,95859.0,0.02741889]
[1736873793972,0.09987428,95860.0,95859.0,0.02641889]
[1736873794433,0.10487428,95860.0,95859.0,0.02641889]
[1736873794651,0.005,95860.0,95859.0,0.02641889]
[1736873794852,0.004,95860.0,95859.0,0.02641889]
[1736873795075,0.06512291,95861.0,95859.0,0.02641889]
[1736873795982,0.09987428,95860.0,95859.0,0.02641889]
[1736873796170,0.06512291,95861.0,95859.0,0.02641889]
[1736873796384,0.007,95860.0,95859.0,0.02741889]
[1736873796912,0.06512291,95861.0,95859.0,0.02641889]
[1736873797051,0.06512291,95861.0,95859.0,0.02841889]
[1736873797254,0.06512291,95870.0,95863.0,0.208629]
[1736873797518,0.01635286,95874.0,95866.0,0.208623]
[1736873797696,0.01635286,95874.0,95870.0,0.208613]
[1736873797901,0.06512291,95881.0,95871.0,0.10422692]
[1736873798103,0.06512291,95881.0,95872.0,0.208611]
[1736873798431,0.06512291,95881.0,95876.0,0.208601]
[1736873798626,0.06512291,95881.0,95872.0,0.208611]
[1736873798627,0.06512291,95881.0,95872.0,0.233091]
[1736873798872,0.09987428,95886.0,95873.0,0.10422692]
[1736873799075,0.09987428,95886.0,95874.0,0.208607]
[1736873799272,0.09987428,95886.0,95876.0,0.208602]
[1736873799497,0.06512291,95888.0,95876.0,0.208602]
[1736873799498,0.09987428,95887.0,95880.0,0.208593]
[1736873799679,0.09987428,95886.0,95880.0,0.208593]
[1736873800037,0.09987428,95886.0,95880.0,0.233073]
[1736873800239,0.09987428,95886.0,95880.0,0.02448]
[1736873801013,0.09987428,95886.0,95880.0,0.02648]
[1736873801636,0.06512291,95881.0,95880.0,0.02648]
[1736873802982,0.16499719,95881.0,95880.0,0.02648]
[1736873803241,0.16599719,95881.0,95880.0,0.02448]
[1736873803623,0.16499719,95881.0,95880.0,0.02548]
[1736873803832,0.16499719,95881.0,95880.0,0.02448]
[1736873804272,0.16599719,95881.0,95880.0,0.02448]
[1736873804424,0.16499719,95881.0,95880.0,0.02448]
[1736873804634,0.16599719,95881.0,95880.0,0.02448]
[1736873804832,0.3741279,95881.0,95880.0,0.02448]
[1736873805035,0.20347428,95881.0,95880.0,0.02448]
[1736873805437,0.26859719,95881.0,95880.0,0.02448]
[1736873805842,0.26959719,95881.0,95880.0,0.02448]
[1736873806047,0.16699719,95881.0,95880.0,0.02448]
[1736873806248,0.06712291,95881.0,95880.0,0.02448]
[1736873806479,0.01835111,95881.0,95880.0,0.02448]
[1736873807115,0.09987428,95888.0,95880.0,0.02448]
[1736873807429,0.09987428,95888.0,95881.0,0.208591]
[1736873807638,0.09987428,95888.0,95881.0,0.233071]
[1736873808038,0.09987428,95888.0,95881.0,0.02448]
[1736873808039,0.06512291,95882.0,95881.0,0.02448]
[1736873809104,0.16499719,95882.0,95881.0,0.02448]
[1736873810159,0.39658619,95882.0,95881.0,0.02448]
[1736873811296,0.39858619,95882.0,95881.0,0.02448]
[1736873811500,0.39958619,95882.0,95881.0,0.02448]
[1736873811890,0.40158619,95882.0,95881.0,0.02448]
[1736873813447,0.40058619,95882.0,95881.0,0.02448]
[1736873813647,0.50528112,95882.0,95881.0,0.02448]
[1736873813763,0.58671311,95882.0,95881.0,0.02448]
[1736873813980,0.63521311,95882.0,95881.0,0.02448]
[1736873814393,0.10487428,95882.0,95881.0,0.02448]
[1736873814592,0.37858619,95882.0,95881.0,0.02448]
[1736873815000,0.37758619,95882.0,95881.0,0.02448]
[1736873815194,0.40158619,95882.0,95881.0,0.02448]
[1736873816136,0.50581311,95882.0,95881.0,0.02448]
[1736873816460,0.50181311,95882.0,95881.0,0.02448]
[1736873816695,0.50481311,95882.0,95881.0,0.02448]
[1736873816899,0.85081311,95882.0,95881.0,0.02312703]
[1736873817104,1.09192003,95882.0,95881.0,3e-08]
[1736873817321,1.09592003,95882.0,95881.0,3e-08]
[1736873817527,1.09092003,95882.0,95881.0,3e-08]
[1736873817877,1.09292003,95882.0,95881.0,3e-08]
[1736873818080,0.09987428,95846.0,95831.0,0.20721051]
[1736873818279,0.06512291,95842.0,95831.0,0.32195316]
[1736873818661,0.06512291,95842.0,95832.0,0.0195054]
[1736873818867,0.06512291,95842.0,95840.0,0.03]
[1736873819275,0.16499719,95846.0,95840.0,0.03]
[1736873819531,0.16499719,95846.0,95837.0,0.208687]
[1736873820175,0.16499719,95846.0,95835.0,0.208691]
[1736873820386,0.16499719,95846.0,95837.0,0.05222996]
[1736873820569,0.16499719,95846.0,95840.0,0.003]
[1736873820770,0.16499719,95846.0,95836.0,0.0195054]
[1736873821188,0.16499719,95846.0,95837.0,0.003]
[1736873821386,0.16499719,95846.0,95838.0,0.208685]
[1736873822004,0.16499719,95846.0,95838.0,0.05222996]
[1736873822517,0.16499719,95846.0,95838.0,0.26091296]
[1736873822765,0.06512291,95867.0,95839.0,0.10422692]
[1736873822997,0.06512291,95866.0,95854.0,0.20865]
[1736873823251,0.06512291,95850.0,95839.0,0.0195054]
[1736873823438,0.06512291,95846.0,95840.0,0.001]
[1736873823731,0.06512291,95846.0,95839.0,0.0195054]
[1736873823874,0.06712291,95846.0,95839.0,0.0195054]
[1736873824075,0.06712291,95846.0,95839.0,0.001]
[1736873824277,0.16499719,95846.0,95837.0,0.208687]
[1736873824551,0.16499719,95846.0,95836.0,0.0195054]
[1736873824552,0.06512291,95843.0,95836.0,0.0195054]
[1736873824856,0.06512291,95843.0,95840.0,0.002]
[1736873825057,0.06512291,95843.0,95836.0,0.0195054]
[1736873825058,0.023,95840.0,95836.0,0.0195054]
[1736873825310,0.09987428,95833.0,95828.0,0.0195054]
[1736873826213,0.06512291,95832.0,95828.0,0.0195054]
[1736873826404,0.06512291,95832.0,95828.0,0.00014962]
[1736873826673,0.06512291,95842.0,95829.0,0.10422692]
[1736873827176,0.09987428,95866.0,95833.0,0.2322]
[1736873827348,0.09987428,95866.0,95850.0,0.20706906]
[1736873827548,0.09282863,95874.0,95850.0,0.20706906]
[1736873827549,0.09987428,95865.0,95861.0,0.208634]
[1736873827968,0.09987428,95865.0,95861.0,0.26086396]
[1736873828539,0.09987428,95865.0,95861.0,0.05222996]
[1736873829019,0.18799719,95862.0,95861.0,0.05222996]
[1736873829693,0.66622824,95862.0,95861.0,0.05222996]
[1736873829910,0.67565596,95862.0,95861.0,0.05222996]
[1736873830109,0.77565596,95862.0,95861.0,0.05222996]
[1736873830365,0.77565596,95862.0,95823.0,0.208717]
[1736873830366,0.09987428,95820.0,95817.0,0.0106595]
[1736873830539,0.16499719,95814.0,95813.0,0.13979333]
[1736873830763,0.16499719,95814.0,95813.0,0.1402923]
[1736873830764,0.44870411,95814.0,95813.0,0.1402923]
[1736873831190,0.54870411,95814.0,95813.0,0.00049897]
[1736873831393,0.65938563,95814.0,95813.0,0.00049897]
[1736873831808,0.48778272,95814.0,95813.0,0.00049897]
[1736873832010,0.55938563,95814.0,95813.0,0.00049897]
[1736873832762,0.19447719,95814.0,95813.0,0.00049897]
[1736873832952,0.19578202,95814.0,95813.0,0.00049897]
[1736873833153,0.45000894,95814.0,95813.0,0.00149897]
[1736873833404,0.55470411,95814.0,95813.0,0.00149897]
[1736873833629,0.45170411,95814.0,95813.0,0.00049897]
[1736873833854,0.45770411,95814.0,95813.0,0.00149897]
[1736873834040,0.45470411,95814.0,95813.0,0.00049897]
[1736873834241,0.19399719,95814.0,95813.0,0.00049897]
[1736873834440,0.19399719,95814.0,95813.0,0.00149897]
[1736873834441,0.18478202,95814.0,95813.0,0.00149897]
[1736873834745,0.17147719,95814.0,95813.0,0.04891897]
[1736873834943,0.16499719,95814.0,95813.0,0.04891897]
[1736873835139,0.17299719,95814.0,95813.0,0.04991897]
[1736873835520,0.19730186,95814.0,95813.0,0.04991897]
[1736873835727,0.19599719,95814.0,95813.0,0.04991897]
[1736873836087,0.07312291,95814.0,95813.0,0.04991897]
[1736873836286,0.37573419,95814.0,95813.0,0.04891897]
[1736873836509,0.37373419,95814.0,95813.0,0.04891897]
[1736873836735,0.37773419,95814.0,95813.0,0.04891897]
[1736873836945,0.16699719,95814.0,95813.0,0.04891897]
[1736873837143,0.16699719,95814.0,95813.0,0.04991897]
[1736873837144,0.10187428,95814.0,95813.0,0.04991897]
[1736873837342,0.17099719,95814.0,95813.0,0.04991897]
[1736873837578,0.16499719,95814.0,95813.0,0.04891897]
[1736873837930,0.09987428,95814.0,95813.0,0.04891897]
[1736873838990,0.01636216,95817.0,95813.0,0.04891897]
[1736873839536,0.16499719,95814.0,95813.0,0.04891897]
[1736873839678,0.16499719,95814.0,95813.0,0.04991897]
[1736873839880,0.17147719,95814.0,95813.0,0.04891897]
[1736873840104,0.19447719,95814.0,95813.0,0.04891897]
[1736873840533,0.30000884,95814.0,95813.0,0.04891897]
[1736873840653,0.39142419,95814.0,95813.0,0.04891897]
[1736873840855,0.39842419,95814.0,95813.0,0.04991897]
[1736873841074,0.39442419,95814.0,95813.0,0.00049897]
[1736873841301,0.54442419,95814.0,95813.0,0.00049897]
[1736873841635,0.72962419,95814.0,95813.0,0.00149897]
[1736873842234,0.62962419,95814.0,95813.0,0.00149897]
[1736873842434,0.72962419,95814.0,95813.0,0.04991897]
[1736873842794,0.72262419,95814.0,95813.0,0.04891897]
[1736873842998,0.73262419,95814.0,95813.0,0.04991897]
[1736873843200,0.30222411,95814.0,95813.0,0.04991897]
[1736873843405,0.10987428,95814.0,95813.0,0.04991897]
[1736873843626,0.17499719,95814.0,95813.0,0.04991897]
[1736873843824,0.19799719,95814.0,95813.0,0.04991897]
[1736873844226,0.10987428,95814.0,95813.0,0.04991897]
[1736873844656,0.10687428,95814.0,95813.0,0.04991897]
[1736873844866,0.007,95814.0,95813.0,0.04991897]
[1736873845449,0.007,95814.0,95813.0,0.15414589]
[1736873845643,0.007,95814.0,95813.0,0.15593614]
[1736873846010,0.0038525,95814.0,95813.0,0.15493614]
[1736873846288,0.0048525,95814.0,95813.0,0.15493614]
[1736873846497,0.0018525,95814.0,95813.0,0.15493614]
[1736873846652,0.0008525,95814.0,95813.0,0.15493614]
[1736873846858,0.0008525,95814.0,95813.0,0.16566975]
[1736873847043,0.18884969,95814.0,95813.0,0.05170922]
[1736873847412,0.21651466,95814.0,95813.0,0.05170922]
[1736873847540,0.21651466,95814.0,95813.0,0.06070922]
[1736873847745,0.21751466,95814.0,95813.0,0.06070922]
[1736873848047,0.21751466,95814.0,95813.0,0.01128922]
[1736873848251,0.19632969,95814.0,95813.0,0.01128922]
[1736873848459,0.18984969,95814.0,95813.0,0.01128922]
[1736873848666,0.12472678,95814.0,95813.0,0.01128922]
[1736873848872,0.12472678,95814.0,95813.0,0.00228922]
[1736873848873,0.10172678,95814.0,95813.0,0.00228922]
[1736873849086,0.16584969,95814.0,95813.0,0.00228922]
[1736873849309,0.17284969,95814.0,95813.0,0.00328922]
[1736873849522,0.16584969,95814.0,95813.0,0.05070922]
[1736873849889,0.16884969,95814.0,95813.0,0.05170922]
[1736873850081,0.16584969,95814.0,95813.0,0.05170922]
[1736873850304,0.16584969,95814.0,95813.0,0.05070922]
[1736873850505,0.16684969,95814.0,95813.0,0.05070922]
[1736873850682,0.16784969,95814.0,95813.0,0.05070922]
[1736873851259,0.24202068,95814.0,95813.0,0.05070922]
[1736873851594,0.24302068,95814.0,95813.0,0.05070922]
[1736873852021,0.18984969,95814.0,95813.0,0.05070922]
[1736873852221,0.19115444,95814.0,95813.0,0.05070922]
[1736873852423,0.19215444,95814.0,95813.0,0.05070922]
[1736873852628,0.18984969,95814.0,95813.0,0.05070922]
[1736873852827,0.18884969,95814.0,95813.0,0.05070922]
[1736873853004,0.19484969,95814.0,95813.0,0.05170922]
[1736873853206,0.35838851,95814.0,95813.0,0.05070922]
[1736873853525,0.36338851,95814.0,95813.0,0.05070922]
[1736873853732,0.19384969,95814.0,95813.0,0.05070922]
[1736873853899,0.19584969,95814.0,95813.0,0.05070922]
[1736873854543,0.20032969,95814.0,95813.0,0.05070922]
[1736873854873,0.20332969,95814.0,95813.0,0.05070922]
[1736873855100,0.20463447,95814.0,95813.0,0.05070922]
[1736873855272,0.20963447,95814.0,95813.0,0.05070922]
[1736873855471,0.19963447,95814.0,95813.0,0.05070922]
[1736873855646,0.19832969,95814.0,95813.0,0.05070922]
[1736873855855,0.19684969,95814.0,95813.0,0.05070922]
[1736873856076,0.10072678,95814.0,95813.0,0.05070922]